[Event "CCT Chessable Masters Play-In 2025"]
[Site "Online"]
[Date "2025.02.17"]
[Round "2.33"]
[White "Martirosyan, Haik M."]
[Black "Mikaelyan, Arman"]
[Result "1-0"]
[ECO "D43"]
[WhiteElo "2645"]
[BlackElo "2497"]
[PlyCount "83"]
[EventDate "2025.02.13"]
[EventType "swiss"]
[EventCountry "NET"]
[TimeControl "600"]
[WhiteClock "0:04:57"]
[BlackClock "0:00:16"]

1. d4 {[%emt 0:00:01]} d5 {[%emt 0:00:19]} 2. c4 {[%emt 0:00:00]} c6 {[%emt 0:00:00]} 3. Nf3 {[%emt 0:00:03]} Nf6 {[%emt 0:00:01]} 4. Nc3 {[%emt 0:00:00]} e6 {[%emt 0:00:00]} 5. Bg5 {[%emt 0:00:01]} h6 {[%emt 0:00:03]} 6. Bxf6 {[%emt 0:00:00]} Qxf6 {[%emt 0:00:00]} 7. e3 {[%emt 0:00:01]} Nd7 {[%emt 0:00:01]} 8. Be2 {[%emt 0:00:03]} g6 {[%emt 0:00:05]} 9. O-O {[%emt 0:00:02]} dxc4 {[%emt 0:00:09]} 10. Bxc4 {[%emt 0:00:08]} Bg7 {[%emt 0:00:02]} 11. Re1 {[%emt 0:00:00]} O-O {[%emt 0:00:04]} 12. e4 {[%emt 0:00:01]} Qe7 {[%emt 0:00:01]} 13. e5 {[%emt 0:00:02]} Rd8 {[%emt 0:00:03]} 14. Qe2 {[%emt 0:00:03]} b5 {[%emt 0:00:42]} 15. Bd3 {[%emt 0:00:02]} Rb8 {[%emt 0:00:05]} 16. Rac1 {[%emt 0:00:23]} c5 {[%emt 0:00:19]} 17. d5 {[%emt 0:01:19]} c4 {[%emt 0:00:22]} 18. d6 {[%emt 0:00:05]} Qf8 {[%emt 0:00:02]} 19. Bc2 {[%emt 0:00:02]} Bb7 {[%emt 0:00:09]} 20. Be4 {[%emt 0:00:29]} Bxe4 {[%emt 0:00:07]} 21. Qxe4 {[%emt 0:00:08]} Nc5 {[%emt 0:00:03]} 22. Qe3 {[%emt 0:00:08]} Nd3 {[%emt 0:00:02]} 23. Rcd1 {[%emt 0:00:00]} Nxe1 {[%emt 0:00:40]} 24. Qxe1 {[%emt 0:00:00]} b4 {[%emt 0:00:22]} 25. Ne4 {[%emt 0:00:02]} Qe8 {[%emt 0:00:12]} 26. Qe3 {[%emt 0:00:27]} Qc6 {[%emt 0:00:08]} 27. h4 {[%emt 0:00:03]} Qb6 {[%emt 0:00:24]} 28. Qf4 {[%emt 0:00:04]} c3 {[%emt 0:00:06]} 29. bxc3 {[%emt 0:00:12]} bxc3 {[%emt 0:00:01]} 30. Nxc3 {[%emt 0:00:00]} Qb4 {[%emt 0:00:06]} 31. Ne4 {[%emt 0:00:01]} Qb2 {[%emt 0:00:42]} 32. Rd4 {[%emt 0:00:29]} Qa1+ {[%emt 0:00:08]} 33. Kh2 {[%emt 0:00:01]} Rb5 {[%emt 0:00:09]} 34. Nf6+ {[%emt 0:00:03]} Kh8 {[%emt 0:00:13]} 35. Ng4 {[%emt 0:00:01]} Rb1 {[%emt 0:01:11]} 36. Nxh6 {[%emt 0:00:12]} Rh1+ {[%emt 0:01:22]} 37. Kg3 {[%emt 0:00:02]} Bxh6 {[%emt 0:00:18]} 38. Qxh6+ {[%emt 0:00:11]} Kg8 {[%emt 0:00:00]} 39. Qg5 {[%emt 0:00:06]} Rd7 {[%emt 0:00:30]} 40. Rc4 {[%emt 0:00:01]} Kh7 {[%emt 0:00:16]} 41. Qf4 {[%emt 0:00:05]} Qd1 {[%emt 0:00:17]} 42. Ng5+ {[%emt 0:00:02]} 1-0

[Event "CCT Chessable Masters Play-In 2025"]
[Site "Online"]
[Date "2025.02.17"]
[Round "2.34"]
[White "Indjic, Aleksandar"]
[Black "Sharapov, Evgeny"]
[Result "0-1"]
[ECO "A45"]
[WhiteElo "2650"]
[BlackElo "2375"]
[PlyCount "62"]
[EventDate "2025.02.13"]
[EventType "swiss"]
[EventCountry "NET"]
[TimeControl "600"]
[WhiteClock "0:05:34"]
[BlackClock "0:05:17"]

1. d4 {[%emt 0:00:01]} Nf6 {[%emt 0:00:03]} 2. Bg5 {[%emt 0:00:02]} c5 {[%emt 0:00:03]} 3. d5 {[%emt 0:00:02]} Qb6 {[%emt 0:00:02]} 4. Nc3 {[%emt 0:00:02]} Qxb2 {[%emt 0:00:01]} 5. Bd2 {[%emt 0:00:02]} Qb6 {[%emt 0:00:01]} 6. e4 {[%emt 0:00:01]} d6 {[%emt 0:00:01]} 7. f4 {[%emt 0:00:06]} Nfd7 {[%emt 0:00:01]} 8. a4 {[%emt 0:00:05]} g6 {[%emt 0:00:01]} 9. Rb1 {[%emt 0:00:05]} Qd8 {[%emt 0:00:02]} 10. Nf3 {[%emt 0:00:10]} Bg7 {[%emt 0:00:01]} 11. Bc4 {[%emt 0:00:06]} O-O {[%emt 0:00:17]} 12. O-O {[%emt 0:00:19]} Na6 {[%emt 0:00:22]} 13. Qe2 {[%emt 0:00:16]} Nb4 {[%emt 0:00:02]} 14. Be1 {[%emt 0:00:16]} Nb6 {[%emt 0:00:04]} 15. Bb3 {[%emt 0:00:04]} Bg4 {[%emt 0:00:03]} 16. Nd1 {[%emt 0:00:10]} Qd7 {[%emt 0:00:12]} 17. a5 {[%emt 0:00:03]} Nc8 {[%emt 0:00:06]} 18. Ne3 {[%emt 0:00:01]} Bxf3 {[%emt 0:00:03]} 19. Rxf3 {[%emt 0:00:03]} b5 {[%emt 0:00:20]} 20. Rh3 {[%emt 0:00:35]} Na6 {[%emt 0:00:47]} 21. c4 {[%emt 0:00:04]} Rb8 {[%emt 0:00:17]} 22. Rd1 {[%emt 0:00:01]} bxc4 {[%emt 0:00:09]} 23. Bxc4 {[%emt 0:00:02]} Nb4 {[%emt 0:00:03]} 24. Kh1 {[%emt 0:00:01]} Qa4 {[%emt 0:00:26]} 25. Qf2 {[%emt 0:00:11]} Bd4 {[%emt 0:00:18]} 26. Qh4 {[%emt 0:00:06]} h5 {[%emt 0:00:03]} 27. Be2 {[%emt 0:00:30]} Bxe3 {[%emt 0:00:12]} 28. Rxe3 {[%emt 0:00:02]} Nc2 {[%emt 0:00:01]} 29. Rg3 {[%emt 0:00:06]} Nxe1 {[%emt 0:00:11]} 30. Bxh5 {[%emt 0:00:02]} Qxe4 {[%emt 0:00:10]} 31. h3 {[%emt 0:00:52]} Rb2 {[%emt 0:00:21]} 0-1

[Event "CCT Chessable Masters Play-In 2025"]
[Site "Online"]
[Date "2025.02.17"]
[Round "2.35"]
[White "Sokolovsky, Yahli"]
[Black "Lazavik, Denis"]
[Result "0-1"]
[ECO "D30"]
[WhiteElo "2552"]
[BlackElo "2572"]
[PlyCount "88"]
[EventDate "2025.02.13"]
[EventType "swiss"]
[EventCountry "NET"]
[TimeControl "600"]
[WhiteClock "0:00:24"]
[BlackClock "0:03:39"]

1. d4 {[%emt 0:00:01]} Nf6 {[%emt 0:00:04]} 2. Nf3 {[%emt 0:00:01]} d5 {[%emt 0:00:04]} 3. c4 {[%emt 0:00:01]} e6 {[%emt 0:00:01]} 4. cxd5 {[%emt 0:00:08]} exd5 {[%emt 0:00:01]} 5. Bg5 {[%emt 0:00:01]} c6 {[%emt 0:00:05]} 6. e3 {[%emt 0:00:02]} h6 {[%emt 0:00:10]} 7. Bh4 {[%emt 0:00:15]} Bf5 {[%emt 0:00:17]} 8. Qb3 {[%emt 0:00:34]} Nbd7 {[%emt 0:00:07]} 9. Nbd2 {[%emt 0:01:01]} Qb6 {[%emt 0:00:07]} 10. Be2 {[%emt 0:00:16]} Be7 {[%emt 0:00:04]} 11. O-O {[%emt 0:00:02]} O-O {[%emt 0:00:03]} 12. Ne5 {[%emt 0:00:15]} Rfe8 {[%emt 0:00:12]} 13. f4 {[%emt 0:00:27]} Qxb3 {[%emt 0:00:58]} 14. Nxb3 {[%emt 0:00:12]} Ne4 {[%emt 0:00:01]} 15. Bxe7 {[%emt 0:00:21]} Rxe7 {[%emt 0:00:00]} 16. g4 {[%emt 0:00:02]} Bh7 {[%emt 0:00:04]} 17. Rae1 {[%emt 0:00:33]} Nxe5 {[%emt 0:00:18]} 18. dxe5 {[%emt 0:01:20]} f6 {[%emt 0:00:02]} 19. exf6 {[%emt 0:00:03]} Nxf6 {[%emt 0:00:03]} 20. Bf3 {[%emt 0:00:01]} Bd3 {[%emt 0:01:24]} 21. Rf2 {[%emt 0:00:01]} Rae8 {[%emt 0:00:01]} 22. Rd2 {[%emt 0:00:01]} Bc4 {[%emt 0:00:02]} 23. Kf2 {[%emt 0:00:02]} Bxb3 {[%emt 0:00:03]} 24. axb3 {[%emt 0:00:01]} g5 {[%emt 0:00:00]} 25. Rde2 {[%emt 0:00:25]} Kg7 {[%emt 0:00:07]} 26. h4 {[%emt 0:00:17]} Ne4+ {[%emt 0:00:01]} 27. Bxe4 {[%emt 0:00:20]} Rxe4 {[%emt 0:00:01]} 28. Kf3 {[%emt 0:00:17]} Rb4 {[%emt 0:00:03]} 29. Ra1 {[%emt 0:01:37]} a6 {[%emt 0:00:08]} 30. Ra4 {[%emt 0:00:01]} Rxb3 {[%emt 0:00:06]} 31. fxg5 {[%emt 0:00:00]} hxg5 {[%emt 0:00:03]} 32. hxg5 {[%emt 0:00:01]} Kg6 {[%emt 0:00:10]} 33. Kf4 {[%emt 0:00:16]} Rf8+ {[%emt 0:00:33]} 34. Ke5 {[%emt 0:00:01]} Kxg5 {[%emt 0:00:01]} 35. Kd6 {[%emt 0:00:01]} Rf6+ {[%emt 0:00:14]} 36. Ke7 {[%emt 0:00:06]} Rf3 {[%emt 0:00:05]} 37. e4 {[%emt 0:00:01]} Rbe3 {[%emt 0:00:01]} 38. Rxe3 {[%emt 0:00:15]} Rxe3 {[%emt 0:00:00]} 39. Kd6 {[%emt 0:00:06]} Rxe4 {[%emt 0:00:01]} 40. b4 {[%emt 0:00:01]} Kxg4 {[%emt 0:00:30]} 41. Kc7 {[%emt 0:00:00]} Re7+ {[%emt 0:00:00]} 42. Kd6 {[%emt 0:00:01]} Rf7 {[%emt 0:00:01]} 43. b5+ {[%emt 0:00:02]} Rf4 {[%emt 0:00:01]} 44. bxc6 {[%emt 0:00:07]} Rxa4 {[%emt 0:00:04]} 0-1

[Event "CCT Chessable Masters Play-In 2025"]
[Site "Online"]
[Date "2025.02.17"]
[Round "2.36"]
[White "Keymer, Vincent"]
[Black "Rakhmanov, Aleksandr"]
[Result "0-1"]
[ECO "A15"]
[WhiteElo "2731"]
[BlackElo "2585"]
[PlyCount "192"]
[EventDate "2025.02.13"]
[EventType "swiss"]
[EventCountry "NET"]
[TimeControl "600"]
[WhiteClock "0:00:16"]
[BlackClock "0:00:12"]

1. Nf3 {[%emt 0:00:01]} Nf6 {[%emt 0:00:02]} 2. b3 {[%emt 0:00:00]} d6 {[%emt 0:00:01]} 3. Bb2 {[%emt 0:00:06]} e5 {[%emt 0:00:02]} 4. c4 {[%emt 0:00:05]} g6 {[%emt 0:00:07]} 5. g3 {[%emt 0:00:03]} Bg7 {[%emt 0:00:01]} 6. Bg2 {[%emt 0:00:01]} O-O {[%emt 0:00:01]} 7. O-O {[%emt 0:00:01]} Nc6 {[%emt 0:00:01]} 8. Nc3 {[%emt 0:00:02]} Nd4 {[%emt 0:00:04]} 9. Ne1 {[%emt 0:00:17]} c6 {[%emt 0:00:05]} 10. e3 {[%emt 0:00:01]} Nf5 {[%emt 0:00:06]} 11. Rc1 {[%emt 0:00:33]} h5 {[%emt 0:00:03]} 12. Nf3 {[%emt 0:00:05]} Qe7 {[%emt 0:00:14]} 13. Ba3 {[%emt 0:00:05]} Re8 {[%emt 0:00:05]} 14. d3 {[%emt 0:00:06]} Qd8 {[%emt 0:00:19]} 15. h3 {[%emt 0:00:08]} a6 {[%emt 0:00:34]} 16. Bb2 {[%emt 0:00:29]} Bh6 {[%emt 0:00:25]} 17. Ne4 {[%emt 0:00:04]} Bg7 {[%emt 0:00:11]} 18. Qc2 {[%emt 0:00:09]} Qc7 {[%emt 0:00:13]} 19. Rfd1 {[%emt 0:00:03]} c5 {[%emt 0:00:07]} 20. Nfg5 {[%emt 0:00:03]} Nxe4 {[%emt 0:00:10]} 21. dxe4 {[%emt 0:00:07]} Nh6 {[%emt 0:00:12]} 22. Rd2 {[%emt 0:00:04]} f6 {[%emt 0:00:09]} 23. Nf3 {[%emt 0:00:01]} b5 {[%emt 0:00:01]} 24. Rcd1 {[%emt 0:00:06]} Nf7 {[%emt 0:00:04]} 25. Nh4 {[%emt 0:00:02]} Kh7 {[%emt 0:00:04]} 26. f4 {[%emt 0:00:04]} bxc4 {[%emt 0:00:05]} 27. bxc4 {[%emt 0:00:01]} Rb8 {[%emt 0:00:13]} 28. Bc3 {[%emt 0:00:02]} Bd7 {[%emt 0:00:39]} 29. Rf1 {[%emt 0:00:07]} Qc6 {[%emt 0:00:09]} 30. Qd1 {[%emt 0:00:14]} Qa4 {[%emt 0:00:11]} 31. f5 {[%emt 0:00:02]} g5 {[%emt 0:00:06]} 32. Qxh5+ {[%emt 0:00:12]} Kg8 {[%emt 0:00:03]} 33. Ng6 {[%emt 0:00:02]} Qxc4 {[%emt 0:00:06]} 34. Rc1 {[%emt 0:00:01]} Bc6 {[%emt 0:00:23]} 35. Qg4 {[%emt 0:00:12]} Rb7 {[%emt 0:00:11]} 36. Kh2 {[%emt 0:00:14]} Reb8 {[%emt 0:00:11]} 37. h4 {[%emt 0:00:08]} Bh6 {[%emt 0:00:16]} 38. Qd1 {[%emt 0:00:24]} Qa4 {[%emt 0:00:09]} 39. Rxd6 {[%emt 0:00:12]} Qxd1 {[%emt 0:00:36]} 40. Rcxd1 {[%emt 0:00:05]} Ba4 {[%emt 0:00:05]} 41. R1d2 {[%emt 0:00:05]} Nxd6 {[%emt 0:00:06]} 42. Rxd6 {[%emt 0:00:00]} Rb6 {[%emt 0:00:13]} 43. Rd5 {[%emt 0:00:57]} gxh4 {[%emt 0:00:02]} 44. Rxc5 {[%emt 0:00:28]} Bxe3 {[%emt 0:00:05]} 45. Ra5 {[%emt 0:00:25]} hxg3+ {[%emt 0:00:09]} 46. Kxg3 {[%emt 0:00:00]} Bc6 {[%emt 0:00:21]} 47. Kf3 {[%emt 0:00:06]} Bg5 {[%emt 0:00:08]} 48. Bf1 {[%emt 0:00:12]} Bb5 {[%emt 0:00:03]} 49. Bxb5 {[%emt 0:00:05]} axb5 {[%emt 0:00:07]} 50. Ne7+ {[%emt 0:00:05]} Kf7 {[%emt 0:00:08]} 51. Nd5 {[%emt 0:00:04]} R6b7 {[%emt 0:00:03]} 52. Bb4 {[%emt 0:00:07]} Rh8 {[%emt 0:00:03]} 53. Ra6 {[%emt 0:00:13]} Rh3+ {[%emt 0:00:06]} 54. Kg2 {[%emt 0:00:01]} Rd3 {[%emt 0:00:05]} 55. Ra8 {[%emt 0:00:08]} Rd7 {[%emt 0:00:15]} 56. a3 {[%emt 0:00:07]} Kg7 {[%emt 0:00:06]} 57. Rb8 {[%emt 0:00:05]} Rd4 {[%emt 0:00:15]} 58. Kf3 {[%emt 0:00:02]} R7xd5 {[%emt 0:00:02]} 59. exd5 {[%emt 0:00:02]} e4+ {[%emt 0:00:00]} 60. Kg4 {[%emt 0:00:13]} e3+ {[%emt 0:00:01]} 61. Kf3 {[%emt 0:00:07]} Rxd5 {[%emt 0:00:01]} 62. Kg4 {[%emt 0:00:14]} Rd4+ {[%emt 0:00:01]} 63. Kf3 {[%emt 0:00:01]} Rf4+ {[%emt 0:00:01]} 64. Kg3 {[%emt 0:00:12]} Rxf5 {[%emt 0:00:01]} 65. Re8 {[%emt 0:00:04]} Kf7 {[%emt 0:00:03]} 66. Re7+ {[%emt 0:00:02]} Kg6 {[%emt 0:00:00]} 67. Re8 {[%emt 0:00:00]} Rf1 {[%emt 0:00:02]} 68. Rg8+ {[%emt 0:00:05]} Kf7 {[%emt 0:00:01]} 69. Rf8+ {[%emt 0:00:03]} Ke6 {[%emt 0:00:01]} 70. Kg4 {[%emt 0:00:04]} Rf4+ {[%emt 0:00:02]} 71. Kg3 {[%emt 0:00:02]} Re4 {[%emt 0:00:01]} 72. Kf3 {[%emt 0:00:00]} Kf5 {[%emt 0:00:02]} 73. Rb8 {[%emt 0:00:02]} Re5 {[%emt 0:00:03]} 74. Ke2 {[%emt 0:00:01]} Ke4 {[%emt 0:00:02]} 75. Rb7 {[%emt 0:00:09]} f5 {[%emt 0:00:01]} 76. Bc3 {[%emt 0:00:04]} Rc5 {[%emt 0:00:02]} 77. Bb4 {[%emt 0:00:03]} Rd5 {[%emt 0:00:03]} 78. Rb8 {[%emt 0:00:02]} f4 {[%emt 0:00:00]} 79. Re8+ {[%emt 0:00:00]} Re5 {[%emt 0:00:01]} 80. Rf8 {[%emt 0:00:03]} Be7 {[%emt 0:00:07]} 81. Rf7 {[%emt 0:00:01]} Bxb4 {[%emt 0:00:01]} 82. axb4 {[%emt 0:00:00]} Rh5 {[%emt 0:00:00]} 83. Re7+ {[%emt 0:00:00]} Kd4 {[%emt 0:00:01]} 84. Rd7+ {[%emt 0:00:01]} Kc4 {[%emt 0:00:00]} 85. Kf3 {[%emt 0:00:01]} Rf5 {[%emt 0:00:01]} 86. Re7 {[%emt 0:00:03]} Kxb4 {[%emt 0:00:01]} 87. Kg4 {[%emt 0:00:01]} Rf8 {[%emt 0:00:01]} 88. Re4+ {[%emt 0:00:01]} Kb3 {[%emt 0:00:01]} 89. Kf3 {[%emt 0:00:00]} b4 {[%emt 0:00:00]} 90. Re7 {[%emt 0:00:00]} Ka3 {[%emt 0:00:01]} 91. Ra7+ {[%emt 0:00:01]} Kb2 {[%emt 0:00:00]} 92. Rb7 {[%emt 0:00:01]} b3 {[%emt 0:00:00]} 93. Rb6 {[%emt 0:00:00]} Re8 {[%emt 0:00:01]} 94. Ke2 {[%emt 0:00:01]} f3+ {[%emt 0:00:00]} 95. Ke1 {[%emt 0:00:06]} Rc8 {[%emt 0:00:02]} 96. Kd1 {[%emt 0:00:02]} Rc1# {[%emt 0:00:01]} 0-1

[Event "CCT Chessable Masters Play-In 2025"]
[Site "Online"]
[Date "2025.02.17"]
[Round "2.37"]
[White "Yu, Yangyi"]
[Black "Donchenko, Alexander"]
[Result "1-0"]
[ECO "B12"]
[WhiteElo "2715"]
[BlackElo "2632"]
[PlyCount "101"]
[EventDate "2025.02.13"]
[EventType "swiss"]
[EventCountry "NET"]
[TimeControl "600"]
[WhiteClock "0:02:32"]
[BlackClock "0:02:00"]

1. e4 {[%emt 0:00:01]} c6 {[%emt 0:00:01]} 2. d4 {[%emt 0:00:03]} d5 {[%emt 0:00:01]} 3. e5 {[%emt 0:00:05]} c5 {[%emt 0:00:00]} 4. Nf3 {[%emt 0:00:01]} cxd4 {[%emt 0:00:03]} 5. Nxd4 {[%emt 0:00:01]} Nc6 {[%emt 0:00:03]} 6. Nxc6 {[%emt 0:00:01]} bxc6 {[%emt 0:00:00]} 7. Bd3 {[%emt 0:00:00]} e6 {[%emt 0:00:03]} 8. Nd2 {[%emt 0:00:04]} a5 {[%emt 0:00:03]} 9. Qe2 {[%emt 0:00:06]} Ne7 {[%emt 0:00:07]} 10. Nf3 {[%emt 0:00:01]} Qb6 {[%emt 0:00:27]} 11. Be3 {[%emt 0:00:08]} Qc7 {[%emt 0:00:14]} 12. O-O {[%emt 0:00:03]} Nf5 {[%emt 0:00:05]} 13. Bf4 {[%emt 0:00:09]} Be7 {[%emt 0:00:06]} 14. Rfe1 {[%emt 0:00:07]} O-O {[%emt 0:00:06]} 15. g4 {[%emt 0:00:21]} Nh6 {[%emt 0:00:16]} 16. h3 {[%emt 0:00:01]} Qb6 {[%emt 0:00:11]} 17. Qd2 {[%emt 0:00:08]} Ba6 {[%emt 0:00:13]} 18. Bxh6 {[%emt 0:00:06]} gxh6 {[%emt 0:00:04]} 19. Qxh6 {[%emt 0:00:04]} Bxd3 {[%emt 0:00:03]} 20. cxd3 {[%emt 0:00:00]} Rfb8 {[%emt 0:00:27]} 21. Re2 {[%emt 0:00:47]} Qd8 {[%emt 0:00:11]} 22. Rc1 {[%emt 0:00:04]} Ra6 {[%emt 0:00:01]} 23. d4 {[%emt 0:00:10]} a4 {[%emt 0:00:06]} 24. Kg2 {[%emt 0:00:03]} Rab6 {[%emt 0:00:04]} 25. Rcc2 {[%emt 0:00:12]} Qf8 {[%emt 0:00:06]} 26. Qc1 {[%emt 0:00:23]} Rc8 {[%emt 0:00:31]} 27. Re3 {[%emt 0:00:15]} Kh8 {[%emt 0:00:55]} 28. Rec3 {[%emt 0:00:04]} Qe8 {[%emt 0:00:04]} 29. Qh6 {[%emt 0:00:06]} Qf8 {[%emt 0:00:07]} 30. Qc1 {[%emt 0:00:11]} Qe8 {[%emt 0:00:01]} 31. Qf4 {[%emt 0:00:04]} Qf8 {[%emt 0:00:36]} 32. Ng5 {[%emt 0:00:06]} Kg8 {[%emt 0:00:03]} 33. Rf3 {[%emt 0:00:05]} Bxg5 {[%emt 0:01:05]} 34. Qxg5+ {[%emt 0:00:01]} Kh8 {[%emt 0:00:00]} 35. b3 {[%emt 0:00:24]} axb3 {[%emt 0:00:04]} 36. axb3 {[%emt 0:00:02]} Rcb8 {[%emt 0:00:04]} 37. Rcc3 {[%emt 0:00:12]} R8b7 {[%emt 0:00:15]} 38. Rf4 {[%emt 0:00:20]} Qg7 {[%emt 0:00:08]} 39. Qd8+ {[%emt 0:00:07]} Qg8 {[%emt 0:00:01]} 40. Qd6 {[%emt 0:00:19]} Qe8 {[%emt 0:00:06]} 41. Rff3 {[%emt 0:00:41]} Kg7 {[%emt 0:00:05]} 42. Qa3 {[%emt 0:00:02]} Qf8 {[%emt 0:00:04]} 43. Qc1 {[%emt 0:00:01]} Qd8 {[%emt 0:00:08]} 44. Rxc6 {[%emt 0:00:11]} Rxb3 {[%emt 0:00:01]} 45. Rf6 {[%emt 0:00:13]} Rb1 {[%emt 0:00:11]} 46. Qh6+ {[%emt 0:00:19]} Kh8 {[%emt 0:00:02]} 47. Rcxe6 {[%emt 0:00:12]} Rd1 {[%emt 0:00:11]} 48. Rd6 {[%emt 0:00:06]} Qg8 {[%emt 0:00:02]} 49. Rf4 {[%emt 0:00:06]} Rb8 {[%emt 0:00:08]} 50. e6 {[%emt 0:00:08]} fxe6 {[%emt 0:00:07]} 51. Qf6+ {[%emt 0:00:04]} 1-0

[Event "CCT Chessable Masters Play-In 2025"]
[Site "Online"]
[Date "2025.02.17"]
[Round "2.38"]
[White "Nesterov, Arseniy"]
[Black "Ding, Liren"]
[Result "1/2-1/2"]
[ECO "D38"]
[WhiteElo "2591"]
[BlackElo "2734"]
[PlyCount "92"]
[EventDate "2025.02.13"]
[EventType "swiss"]
[EventCountry "NET"]
[TimeControl "600"]
[WhiteClock "0:00:08"]
[BlackClock "0:00:19"]

1. d4 {[%emt 0:00:01]} Nf6 {[%emt 0:00:56]} 2. c4 {[%emt 0:00:04]} e6 {[%emt 0:00:01]} 3. Nf3 {[%emt 0:00:01]} d5 {[%emt 0:00:01]} 4. Nc3 {[%emt 0:00:01]} Bb4 {[%emt 0:00:01]} 5. Bg5 {[%emt 0:00:02]} h6 {[%emt 0:00:01]} 6. Bxf6 {[%emt 0:00:01]} Qxf6 {[%emt 0:00:00]} 7. e3 {[%emt 0:00:00]} O-O {[%emt 0:00:02]} 8. Rc1 {[%emt 0:00:01]} dxc4 {[%emt 0:00:07]} 9. Bxc4 {[%emt 0:00:01]} c5 {[%emt 0:00:00]} 10. O-O {[%emt 0:00:01]} cxd4 {[%emt 0:00:01]} 11. Ne4 {[%emt 0:00:01]} Qe7 {[%emt 0:00:28]} 12. a3 {[%emt 0:00:02]} Ba5 {[%emt 0:00:01]} 13. exd4 {[%emt 0:00:01]} Rd8 {[%emt 0:00:06]} 14. Ba2 {[%emt 0:00:02]} Bd7 {[%emt 0:02:21]} 15. Qc2 {[%emt 0:00:04]} Bc6 {[%emt 0:00:19]} 16. b4 {[%emt 0:00:02]} Bb6 {[%emt 0:00:04]} 17. Rfe1 {[%emt 0:00:01]} Bxd4 {[%emt 0:00:37]} 18. Bb1 {[%emt 0:04:33]} g6 {[%emt 0:01:02]} 19. Nxd4 {[%emt 0:00:41]} Rxd4 {[%emt 0:00:00]} 20. Qc3 {[%emt 0:00:03]} e5 {[%emt 0:00:14]} 21. Qe3 {[%emt 0:00:19]} Nd7 {[%emt 0:00:45]} 22. Qxh6 {[%emt 0:00:12]} Bxe4 {[%emt 0:00:01]} 23. Bxe4 {[%emt 0:00:03]} Nf6 {[%emt 0:00:01]} 24. Bb1 {[%emt 0:01:12]} Ng4 {[%emt 0:00:09]} 25. Qh3 {[%emt 0:00:01]} Kg7 {[%emt 0:00:07]} 26. Qg3 {[%emt 0:00:02]} Re8 {[%emt 0:00:07]} 27. h3 {[%emt 0:00:05]} Nf6 {[%emt 0:00:01]} 28. Re2 {[%emt 0:00:04]} Nh5 {[%emt 0:00:07]} 29. Qf3 {[%emt 0:00:05]} Nf4 {[%emt 0:00:08]} 30. Re4 {[%emt 0:00:09]} Rxe4 {[%emt 0:00:53]} 31. Bxe4 {[%emt 0:00:05]} Rd8 {[%emt 0:00:06]} 32. Rd1 {[%emt 0:00:10]} Rxd1+ {[%emt 0:00:03]} 33. Qxd1 {[%emt 0:00:00]} f5 {[%emt 0:00:03]} 34. Bf3 {[%emt 0:00:23]} e4 {[%emt 0:00:01]} 35. Be2 {[%emt 0:00:16]} Qg5 {[%emt 0:00:06]} 36. Bf1 {[%emt 0:00:05]} Nxh3+ {[%emt 0:00:01]} 37. Kh2 {[%emt 0:00:00]} Nf4 {[%emt 0:00:05]} 38. Qd4+ {[%emt 0:00:12]} Kf7 {[%emt 0:00:06]} 39. Bc4+ {[%emt 0:00:26]} Kf8 {[%emt 0:00:08]} 40. Qh8+ {[%emt 0:00:03]} Ke7 {[%emt 0:00:01]} 41. Qe5+ {[%emt 0:00:00]} Kf8 {[%emt 0:00:07]} 42. Qb8+ {[%emt 0:00:07]} Ke7 {[%emt 0:00:05]} 43. Qc7+ {[%emt 0:00:02]} Ke8 {[%emt 0:00:01]} 44. Qe5+ {[%emt 0:00:07]} Kf8 {[%emt 0:00:02]} 45. Qh8+ {[%emt 0:00:01]} Ke7 {[%emt 0:00:01]} 46. Qe5+ {[%emt 0:00:00]} Kf8 {[%emt 0:00:04]} 1/2-1/2

[Event "CCT Chessable Masters Play-In 2025"]
[Site "Online"]
[Date "2025.02.17"]
[Round "2.39"]
[White "Grischuk, Alexander"]
[Black "Lagarde, Maxime"]
[Result "1-0"]
[ECO "C01"]
[WhiteElo "2687"]
[BlackElo "2604"]
[PlyCount "105"]
[EventDate "2025.02.13"]
[EventType "swiss"]
[EventCountry "NET"]
[TimeControl "600"]
[WhiteClock "0:00:37"]
[BlackClock "0:00:18"]

1. e4 {[%emt 0:00:01]} e6 {[%emt 0:00:51]} 2. d4 {[%emt 0:00:02]} d5 {[%emt 0:00:04]} 3. Nc3 {[%emt 0:00:02]} Bb4 {[%emt 0:00:18]} 4. exd5 {[%emt 0:00:11]} exd5 {[%emt 0:00:02]} 5. Bd3 {[%emt 0:00:01]} Nf6 {[%emt 0:00:01]} 6. Nf3 {[%emt 0:00:07]} O-O {[%emt 0:00:02]} 7. O-O {[%emt 0:00:01]} h6 {[%emt 0:00:17]} 8. Ne2 {[%emt 0:00:07]} Re8 {[%emt 0:00:05]} 9. Ng3 {[%emt 0:00:12]} Bf8 {[%emt 0:00:08]} 10. Bf4 {[%emt 0:00:17]} c5 {[%emt 0:00:06]} 11. dxc5 {[%emt 0:00:16]} Nc6 {[%emt 0:00:19]} 12. a3 {[%emt 0:02:17]} a5 {[%emt 0:00:30]} 13. h3 {[%emt 0:01:21]} Bxc5 {[%emt 0:00:06]} 14. c3 {[%emt 0:00:02]} Bb6 {[%emt 0:01:18]} 15. Re1 {[%emt 0:00:10]} Be6 {[%emt 0:00:08]} 16. Qd2 {[%emt 0:00:02]} Ne4 {[%emt 0:01:20]} 17. Nxe4 {[%emt 0:00:07]} dxe4 {[%emt 0:00:00]} 18. Bxe4 {[%emt 0:00:23]} Qf6 {[%emt 0:00:03]} 19. Bg3 {[%emt 0:00:17]} Rad8 {[%emt 0:00:09]} 20. Qc2 {[%emt 0:00:06]} Rd7 {[%emt 0:00:28]} 21. Rad1 {[%emt 0:00:03]} Red8 {[%emt 0:00:01]} 22. Rxd7 {[%emt 0:00:05]} Rxd7 {[%emt 0:00:00]} 23. Qa4 {[%emt 0:00:14]} Qd8 {[%emt 0:00:17]} 24. Bc2 {[%emt 0:00:15]} Bd5 {[%emt 0:00:08]} 25. Qg4 {[%emt 0:00:03]} Ne7 {[%emt 0:00:35]} 26. Bh4 {[%emt 0:00:33]} Kf8 {[%emt 0:00:25]} 27. Ba4 {[%emt 0:00:13]} Be6 {[%emt 0:00:16]} 28. Rxe6 {[%emt 0:00:16]} fxe6 {[%emt 0:00:00]} 29. Bxd7 {[%emt 0:00:02]} Qxd7 {[%emt 0:00:00]} 30. Bxe7+ {[%emt 0:00:04]} Qxe7 {[%emt 0:00:04]} 31. Ne5 {[%emt 0:00:10]} Kg8 {[%emt 0:00:02]} 32. Qe2 {[%emt 0:00:04]} a4 {[%emt 0:00:15]} 33. Nc4 {[%emt 0:00:22]} Bc7 {[%emt 0:00:07]} 34. Nd2 {[%emt 0:00:02]} Qd6 {[%emt 0:00:06]} 35. g3 {[%emt 0:00:01]} Qd5 {[%emt 0:00:00]} 36. Ne4 {[%emt 0:00:01]} b5 {[%emt 0:00:04]} 37. Kg2 {[%emt 0:00:02]} Bd6 {[%emt 0:00:05]} 38. h4 {[%emt 0:00:02]} Be7 {[%emt 0:00:02]} 39. f3 {[%emt 0:00:06]} Kf7 {[%emt 0:00:04]} 40. Qd2 {[%emt 0:00:01]} Ke8 {[%emt 0:00:05]} 41. Qe2 {[%emt 0:00:20]} Kd7 {[%emt 0:00:02]} 42. Nf2 {[%emt 0:00:01]} Kc6 {[%emt 0:00:05]} 43. Nd3 {[%emt 0:00:01]} Bd6 {[%emt 0:00:01]} 44. Qe4 {[%emt 0:00:02]} h5 {[%emt 0:00:15]} 45. Kf2 {[%emt 0:00:03]} Qxe4 {[%emt 0:00:06]} 46. fxe4 {[%emt 0:00:01]} Bc7 {[%emt 0:00:04]} 47. Kf3 {[%emt 0:00:01]} Bd6 {[%emt 0:00:04]} 48. g4 {[%emt 0:00:02]} g6 {[%emt 0:00:03]} 49. Nf4 {[%emt 0:00:06]} Kc5 {[%emt 0:00:01]} 50. Nxg6 {[%emt 0:00:03]} Kc4 {[%emt 0:00:05]} 51. gxh5 {[%emt 0:00:01]} Kb3 {[%emt 0:00:02]} 52. h6 {[%emt 0:00:01]} Kxb2 {[%emt 0:00:03]} 53. h7 {[%emt 0:00:00]} 1-0